fUST/lending_fUST_20260107
["ID","MTS","AMOUNT","RATE_DAILY","PERIOD"]
[400615545,1767745832288,-300.0,0.00012998,2]
[400615546,1767745832298,-300.0,0.00012998,2]
[400615547,1767745832307,-604.0,0.00012998,2]
[400615548,1767745832317,-500.0,0.00012999,2]
[400615550,1767745832329,-500.0,0.00012999,2]
[400615552,1767745832342,-8267.0,0.00012999,2]
[400615553,1767745832355,-5673.87291122,0.00013,7]
[400615556,1767745832368,-4667.85314935,0.00013072,2]
[400615558,1767745832381,-500.0,0.00013136,2]
[400615560,1767745832394,-569.00000001,0.00013136,2]
[400615562,1767745832404,-250.0,0.00013136,2]
[400615564,1767745832415,-8267.0,0.00013136,2]
[400615567,1767745832428,-709.15960196,0.00013169,2]
[400615569,1767745832444,-858.12873,0.00013169,2]
[400615626,1767745838635,-6249.90931537,0.00013072,2]
[400615629,1767745838645,-340.92774416,0.00013135,2]
[400615631,1767745838655,-301.11243314,0.00013135,2]
[400615633,1767745838664,-500.0,0.00013135,2]
[400615635,1767745838673,-500.0,0.00013135,2]
[400615637,1767745838683,-500.0,0.00013135,2]
[400615638,1767745838692,-500.0,0.00013135,2]
[400615640,1767745838701,-500.0,0.00013135,2]
[400615643,1767745838711,-500.0,0.00013135,2]
[400615645,1767745838720,-500.0,0.00013135,2]
[400615646,1767745838730,-500.0,0.00013135,2]
[400615648,1767745838739,-500.0,0.00013135,2]
[400615651,1767745838752,-500.0,0.00013135,2]
[400615653,1767745838761,-500.0,0.00013135,2]
[400615655,1767745838770,-500.0,0.00013135,2]
[400615657,1767745838780,-500.0,0.00013135,2]
[400615658,1767745838791,-500.0,0.00013135,2]
[400615661,1767745838800,-500.0,0.00013135,2]
[400615663,1767745838810,-500.0,0.00013135,2]
[400615665,1767745838820,-500.0,0.00013135,2]
[400615666,1767745838829,-500.0,0.00013135,2]
[400615668,1767745838838,-500.0,0.00013135,2]
[400615669,1767745838852,-500.0,0.00013135,2]
[400615671,1767745838862,-500.0,0.00013135,2]
[400615672,1767745838871,-500.0,0.00013135,2]
[400615674,1767745838882,-411.10446761,0.00013135,2]
[400615675,1767745838891,-500.0,0.00013135,2]
[400615676,1767745838901,-500.0,0.00013135,2]
[400615677,1767745838910,-500.0,0.00013135,2]
[400615678,1767745838920,-225.59992799,0.00013168,2]
[400615679,1767745838929,-500.0,0.00013168,2]
[400615680,1767745838939,-500.0,0.00013168,2]
[400615681,1767745838948,-500.0,0.00013168,2]
[400615682,1767745838957,-500.0,0.00013168,2]
[400615683,1767745838967,-500.0,0.00013168,2]
[400615684,1767745838976,-500.0,0.00013168,2]
[400615685,1767745838986,-500.0,0.00013168,2]
[400615686,1767745838996,-500.0,0.00013168,2]
[400615687,1767745839006,-998432.71166804,0.00013169,2]
[400615688,1767745839015,-3446.91098062,0.000132,2]
[400615689,1767745839025,-209.88,0.000132,2]
[400615690,1767745839034,-167.48106999,0.00013273,2]
[400615691,1767745839044,-500.45942406,0.00013273,2]
[400615692,1767745839053,-500.0,0.00013273,2]
[400615693,1767745839062,-500.0,0.00013273,2]
[400615694,1767745839072,-428.58199372,0.00013273,2]
[400615695,1767745839083,-500.0,0.00013273,2]
[400615696,1767745839092,-500.0,0.00013273,2]
[400615697,1767745839102,-500.0,0.00013273,2]
[400615698,1767745839113,-500.0,0.00013273,2]
[400615699,1767745839124,-502.95005986,0.00013273,2]
[400615700,1767745839133,-500.0,0.00013273,2]
[400615701,1767745839142,-165.53460267,0.00013273,2]
[400615702,1767745839152,-606.03605592,0.00013273,2]
[400615703,1767745839161,-500.0,0.00013273,2]
[400615704,1767745839170,-500.0,0.00013273,2]
[400615705,1767745839180,-500.0,0.00013273,2]
[400615706,1767745839189,-500.0,0.00013273,2]
[400615707,1767745839199,-283.37004819,0.00013273,2]
[400615708,1767745839208,-500.0,0.00013273,2]
[400615709,1767745839219,-500.75815525,0.00013273,2]
[400615710,1767745839229,-500.0,0.00013273,2]
[400615711,1767745839239,-500.0,0.00013273,2]
[400615712,1767745839248,-500.0,0.00013273,2]
[400615713,1767745839258,-500.0,0.00013273,2]
[400615714,1767745839268,-500.0,0.00013273,2]
[400615715,1767745839278,-500.0,0.00013273,2]
[400615716,1767745839288,-500.0,0.00013273,2]
[400615717,1767745839297,-500.93094912,0.00013273,2]
[400615718,1767745839307,-500.0,0.00013273,2]
[400615719,1767745839316,-161.85370912,0.00013273,2]
[400615720,1767745839326,-500.0,0.00013273,2]
[400615721,1767745839335,-500.0,0.00013273,2]
[400615722,1767745839344,-500.0,0.00013273,2]
[400615723,1767745839353,-500.0,0.00013273,2]
[400615724,1767745839366,-500.0,0.00013273,2]
[400615725,1767745839376,-500.0,0.00013273,2]
[400615726,1767745839385,-500.0,0.00013273,2]
[400615727,1767745839394,-500.0,0.00013273,2]
[400615728,1767745839403,-500.0,0.00013273,2]
[400615729,1767745839414,-500.0,0.00013273,2]
[400615730,1767745839424,-500.0,0.00013273,2]
[400615731,1767745839433,-500.0,0.00013273,2]
[400615732,1767745839442,-185.45250914,0.00013273,2]
[400615733,1767745839451,-500.0,0.00013273,2]
[400615734,1767745839461,-500.0,0.00013273,2]
[400615735,1767745839473,-500.0,0.00013273,2]
[400615736,1767745839483,-500.0,0.00013273,2]
[400615737,1767745839492,-500.0,0.00013273,2]
[400615738,1767745839500,-232.41734948,0.00013273,2]
[400615739,1767745839510,-268.70604187,0.00013273,2]
[400615740,1767745839519,-210.68917911,0.00013273,2]
[400615741,1767745839528,-500.0,0.00013273,2]
[400615742,1767745839537,-159.32617446,0.00013273,2]
[400615743,1767745839546,-500.49523279,0.00013273,2]
[400615744,1767745839555,-500.0,0.00013273,2]
[400615745,1767745839564,-500.89572759,0.00013273,2]
[400615746,1767745839573,-500.0,0.00013273,2]
[400615747,1767745839582,-500.0,0.00013273,2]
[400615748,1767745839591,-500.0,0.00013273,2]
[400615749,1767745839600,-500.0,0.00013273,2]
[400615750,1767745839608,-500.0,0.00013273,2]
[400615751,1767745839619,-171.59960392,0.00013273,2]
[400615752,1767745839629,-500.0,0.00013273,2]
[400615753,1767745839638,-500.0,0.00013273,2]
[400615754,1767745839647,-500.0,0.00013273,2]
[400615755,1767745839656,-500.0,0.00013273,2]
[400615756,1767745839666,-500.0,0.00013273,2]
[400615757,1767745839676,-8267.0,0.00013273,2]
[400615758,1767745839686,-500.0,0.0001341,2]
[400615759,1767745839698,-155.4754909,0.0001341,2]
[400615760,1767745839709,-8267.0,0.0001341,2]
[400615761,1767745839718,-300.0,0.00013537,2]
[400615762,1767745839728,-300.0,0.00013537,2]
[400615763,1767745839740,-300.0,0.00013537,2]
[400615764,1767745839751,-300.0,0.00013537,2]
[400615765,1767745839760,-300.0,0.00013537,2]
[400615766,1767745839769,-300.0,0.00013537,2]
[400615767,1767745839779,-300.0,0.00013537,2]
[400615768,1767745839792,-300.0,0.00013537,2]
[400615769,1767745839801,-300.0,0.00013537,2]
[400615770,1767745839810,-300.0,0.00013537,2]
[400615771,1767745839821,-300.0,0.00013537,2]
[400615772,1767745839830,-300.0,0.00013537,2]
[400615773,1767745839839,-300.0,0.00013537,2]
[400615774,1767745839848,-300.0,0.00013537,2]
[400615775,1767745839858,-300.0,0.00013537,2]
[400615776,1767745839867,-500.0,0.00013547,2]
[400615777,1767745839876,-200.0,0.00013547,2]
[400615778,1767745839885,-8267.0,0.00013547,2]
[400615779,1767745839894,-151.0,0.000136,2]
[400615780,1767745839904,-151.0,0.000136,2]
[400615781,1767745839913,-151.0,0.000136,2]
[400615782,1767745839923,-151.0,0.000136,2]
[400615783,1767745839932,-151.0,0.000136,2]
[400615784,1767745839941,-151.0,0.000136,2]
[400615785,1767745839950,-151.0,0.000136,2]
[400615786,1767745839960,-151.0,0.000136,2]
[400615787,1767745839970,-151.0,0.000136,2]
[400615788,1767745839980,-151.0,0.000136,2]
[400615789,1767745839989,-300.0,0.00013673,2]
[400615790,1767745839999,-500.0,0.00013684,2]
[400615791,1767745840008,-8267.0,0.00013684,2]
[400615792,1767745840018,-500.0,0.00013698,2]
[400615793,1767745840027,-500.0,0.00013698,2]
[400615794,1767745840036,-361.95914229,0.00013698,2]
[400615795,1767745840045,-580.76,0.00013698,2]
[400615796,1767745840055,-3510.39,0.00013698,2]
[400615797,1767745840064,-3510.39,0.00013698,2]
[400615798,1767745840074,-3510.39,0.00013698,2]
[400615799,1767745840084,-3510.39,0.00013698,2]
[400615800,1767745840093,-3510.39,0.00013698,2]
[400615801,1767745840104,-3510.39,0.00013698,2]
[400615802,1767745840113,-3510.39,0.00013698,2]
[400615803,1767745840123,-3510.39,0.00013698,2]
[400615804,1767745840132,-3510.39,0.00013698,2]
[400615805,1767745840141,-3510.39,0.00013698,2]
[400615808,1767745840152,-3510.39,0.00013698,2]
[400615811,1767745840162,-3510.39,0.00013698,2]
[400615814,1767745840171,-3510.39,0.00013698,2]
[400615816,1767745840180,-3510.39,0.00013698,2]
[400615818,1767745840189,-3510.39,0.00013698,2]
[400615819,1767745840198,-3510.39,0.00013698,2]
[400615820,1767745840208,-3510.39,0.00013698,2]
[400615821,1767745840217,-3510.39,0.00013698,2]
[400615822,1767745840227,-3510.39,0.00013698,2]
[400615823,1767745840235,-3510.39,0.00013698,2]
[400615824,1767745840245,-3510.39,0.00013698,2]
[400615825,1767745840254,-3510.39,0.00013698,2]
[400615826,1767745840263,-3510.39,0.00013698,2]
[400615827,1767745840273,-3510.46251885,0.00013698,2]
[400615828,1767745840282,-500.0,0.00013698,2]
[400615829,1767745840292,-500.0,0.00013698,2]
[400615830,1767745840301,-577.08,0.00013698,2]
[400615831,1767745840309,-500.0,0.00013698,2]
[400615832,1767745840320,-500.0,0.00013698,2]
[400615833,1767745840329,-466.89772029,0.00013698,2]
[400615834,1767745840338,-2439.506638,0.00013699,2]
[400615835,1767745840349,-1000.0,0.00013699,2]
[400615836,1767745840358,-885.4942762,0.00013699,2]
[400615838,1767745840367,-504.37236451,0.00013699,2]
[400615840,1767745840377,-500.0,0.00013699,2]
[400615842,1767745840388,-500.71714379,0.00013699,2]
[400615844,1767745840399,-500.0,0.00013699,2]
[400615846,1767745840408,-500.0,0.00013699,2]
[400615847,1767745840417,-500.0,0.00013699,2]
[400615849,1767745840426,-500.0,0.00013699,2]
[400615851,1767745840436,-500.0,0.00013699,2]
[400615852,1767745840447,-500.0,0.00013699,2]
[400615853,1767745840456,-500.0,0.00013699,2]
[400615854,1767745840467,-500.0,0.00013699,2]
[400615855,1767745840478,-500.0,0.00013699,2]
[400615856,1767745840488,-500.0,0.00013699,2]
[400615857,1767745840498,-500.0,0.00013699,2]
[400615859,1767745840507,-500.0,0.00013699,2]
[400615860,1767745840516,-500.0,0.00013699,2]
[400615862,1767745840525,-500.0,0.00013699,2]
[400615864,1767745840535,-500.0,0.00013699,2]
[400615866,1767745840544,-500.0,0.00013699,2]
[400615868,1767745840553,-500.0,0.00013699,2]
[400615870,1767745840562,-501.00450759,0.00013699,2]
[400615872,1767745840571,-500.0,0.00013699,2]
[400615873,1767745840580,-500.7233053,0.00013699,2]
[400615875,1767745840590,-500.0,0.00013699,2]
[400615877,1767745840600,-634.09365022,0.00013699,2]
[400615878,1767745840609,-500.0,0.00013699,2]
[400615879,1767745840618,-500.74532212,0.00013699,2]
[400615880,1767745840627,-500.17698717,0.00013699,2]
[400615881,1767745840636,-500.0,0.00013699,2]
[400615882,1767745840646,-500.0,0.00013699,2]
[400615883,1767745840656,-500.0,0.00013699,2]
[400615885,1767745840665,-500.0,0.00013699,2]
[400615887,1767745840675,-500.0,0.00013699,2]
[400615889,1767745840684,-500.0,0.00013699,2]
[400615890,1767745840693,-254.27500282,0.00013699,2]
[400615891,1767745840702,-500.0,0.00013699,2]
[400615892,1767745840711,-500.0,0.00013699,2]
[400615893,1767745840721,-500.0,0.00013699,2]
[400615894,1767745840730,-500.0,0.00013699,2]
[400615895,1767745840740,-500.0,0.00013699,2]
[400615896,1767745840751,-500.2666594,0.00013699,2]
[400615897,1767745840760,-500.0,0.00013699,2]
[400615898,1767745840769,-500.0,0.00013699,2]
[400615899,1767745840778,-526.06901587,0.00013699,2]
[400615900,1767745840790,-500.93963039,0.00013699,2]
[400615901,1767745840800,-343.49392703,0.00013699,2]
[400615902,1767745840809,-500.0,0.00013699,2]
[400615903,1767745840819,-351.22077635,0.00013699,2]
[400615904,1767745840828,-1000.0,0.00013821,2]
[400615905,1767745840837,-1000.0,0.00013821,2]
[400615906,1767745840847,-1000.0,0.00013821,2]
[400615907,1767745840856,-1103.20077108,0.00013821,2]
[400615908,1767745840865,-500.0,0.00013821,2]
[400615909,1767745840874,-1000.0,0.00013821,2]
[400615910,1767745840883,-1002.25371869,0.00013821,2]
[400615911,1767745840892,-1000.0,0.00013821,2]
[400615912,1767745840901,-361.95620737,0.00013821,2]
[400615913,1767745840910,-1000.0,0.00013821,2]
[400615914,1767745840919,-1000.0,0.00013821,2]
[400615915,1767745840929,-1000.0,0.00013821,2]
[400615916,1767745840940,-1000.0,0.00013821,2]
[400615917,1767745840948,-1000.0,0.00013821,2]
[400615918,1767745840959,-325.41046697,0.00013821,2]
[400615919,1767745840967,-406.18034584,0.00013821,2]
[400615920,1767745840977,-1000.0,0.00013821,2]
[400615921,1767745840986,-275.69590667,0.00013821,2]
[400615922,1767745840995,-500.0,0.00013821,2]
[400615923,1767745841005,-8267.0,0.00013821,2]
[400615924,1767745841014,-15000.0,0.0001386,2]
[400615925,1767745841023,-500.0,0.00013958,2]
[400615926,1767745841032,-8267.0,0.00013958,2]
[400615927,1767745841041,-163.60914411,0.00013973,2]
[400615928,1767745841051,-558.00072349,0.00014095,2]
[400615929,1767745841060,-8267.0,0.00014095,2]
[400615930,1767745841070,-322.42116165,0.00014175,2]
[400615931,1767745841079,-600.0,0.00014221,2]
[400615932,1767745841088,-8267.0,0.00014232,2]
[400615933,1767745841098,-1000.0,0.00014247,2]
[400615934,1767745841108,-602.91356518,0.00014247,2]
[400615935,1767745841117,-501.56829016,0.00014247,2]
[400615936,1767745841126,-500.0,0.00014247,2]
[400615937,1767745841135,-504.33287174,0.00014247,2]
[400615938,1767745841145,-520.45931442,0.00014247,2]
[400615939,1767745841154,-1000.0,0.00014247,2]
[400615940,1767745841163,-500.84667986,0.00014247,2]
[400615941,1767745841172,-500.0,0.00014247,2]
[400615942,1767745841181,-500.0,0.00014247,2]
[400615943,1767745841191,-1000.0,0.00014247,2]
[400615944,1767745841200,-500.61401424,0.00014247,2]
[400615945,1767745841210,-1000.0,0.00014247,2]
[400615946,1767745841219,-500.0,0.00014247,2]
[400615947,1767745841229,-1000.0,0.00014247,2]
[400615948,1767745841238,-501.17135178,0.00014247,2]
[400615949,1767745841247,-1000.0,0.00014247,2]
[400615950,1767745841256,-500.84600982,0.00014247,2]
[400615951,1767745841266,-500.0,0.00014247,2]
[400615952,1767745841275,-580.83767681,0.00014247,2]
[400615953,1767745841284,-1000.0,0.00014247,2]
[400615954,1767745841293,-420.0,0.00014255,2]
[400615955,1767745841302,-1500.0,0.00014368,2]
[400615956,1767745841312,-1500.0,0.00014368,2]
[400615957,1767745841321,-899.54515289,0.00014368,2]
[400615958,1767745841331,-1500.0,0.00014368,2]
[400615959,1767745841340,-1000.0,0.00014368,2]
[400615960,1767745841349,-500.0,0.00014368,2]
[400615961,1767745841358,-1500.0,0.00014368,2]
[400615962,1767745841367,-1500.0,0.00014368,2]
[400615963,1767745841376,-1000.0,0.00014368,2]
[400615964,1767745841385,-698.64498703,0.00014368,2]
[400615965,1767745841394,-1098.44792801,0.00014368,2]
[400615966,1767745841403,-8267.0,0.00014369,2]
[400615967,1767745841412,-550.91820436,0.00014428,2]
[400615968,1767745841422,-8267.0,0.00014506,2]
[400615969,1767745841432,-4667.85314935,0.00014529,2]
[400615970,1767745841440,-8267.0,0.00014643,2]
[400615971,1767745841450,-727.40712175,0.00014768,2]
[400615972,1767745841458,-8267.0,0.0001478,2]
[400615973,1767745841467,-1500.0,0.00014795,2]
[400615974,1767745841478,-1500.0,0.00014795,2]
[400615975,1767745841486,-533.7772006,0.00014795,2]
[400615976,1767745841495,-1500.0,0.00014795,2]
[400615977,1767745841504,-1500.0,0.00014795,2]
[400615978,1767745841514,-500.0,0.00014855,2]
[400615979,1767745841523,-500.0,0.00014855,2]
[400615980,1767745841532,-500.0,0.00014855,2]
[400615981,1767745841540,-500.0,0.00014855,2]
[400615982,1767745841550,-500.0,0.00014855,2]
[400615983,1767745841559,-500.0,0.00014855,2]
[400615984,1767745841568,-500.0,0.00014855,2]
[400615985,1767745841577,-500.0,0.00014855,2]
[400615986,1767745841586,-500.0,0.00014855,2]
[400615987,1767745841596,-500.0,0.00014855,2]
[400615988,1767745841606,-500.0,0.00014855,2]
[400615989,1767745841616,-500.0,0.00014855,2]
[400615990,1767745841625,-500.0,0.00014855,2]
[400615991,1767745841634,-500.0,0.00014855,2]
[400615992,1767745841644,-500.0,0.00014855,2]
[400615993,1767745841653,-500.0,0.00014855,2]
[400615994,1767745841662,-511.14869574,0.00014855,2]
[400615995,1767745841671,-100000.0,0.00014882,2]
[400615996,1767745841680,-2000.0,0.00014916,2]
[400615997,1767745841689,-500.0,0.00014916,2]
[400615998,1767745841699,-2000.0,0.00014916,2]
[400615999,1767745841708,-2000.0,0.00014916,2]
[400616000,1767745841718,-8267.0,0.00014917,2]
[400616001,1767745841728,-1000.0,0.00015,2]
[400616002,1767745841744,-2412.43259168,0.00015,2]
[400616003,1767745841755,-4997.5,0.00015,2]
[400616004,1767745841764,-531.35451386,0.00015,3]
[400616005,1767745841774,-10987.96789992,0.0001501,2]
[400616006,1767745841785,-8267.0,0.00015054,2]
[400616007,1767745841795,-177.0,0.00015067,2]
[400616008,1767745841805,-239.892767,0.00015068,2]
[400616009,1767745841816,-273.72368144,0.0001515,20]
[400616010,1767745841825,-8267.0,0.00015191,2]
[400616011,1767745841949,-8267.0,0.00015328,2]
[400616012,1767745841961,-2000.0,0.00015342,2]
[400616013,1767745841970,-2000.0,0.00015342,2]
[400616014,1767745841980,-2000.0,0.00015342,2]
[400616015,1767745841990,-2000.0,0.00015342,2]
[400616016,1767745841999,-541.38457236,0.00015464,2]
[400616017,1767745842008,-2500.0,0.00015464,2]
[400616018,1767745842018,-2500.0,0.00015464,2]
[400616019,1767745842028,-8267.0,0.00015465,2]
[400616020,1767745842037,-8267.0,0.00015602,2]
[400616021,1767745842047,-587.0,0.00015632,2]
[400616022,1767745842058,-8267.0,0.00015739,2]
[400616023,1767745842068,-806.78644659,0.00015857,4]
[400616024,1767745842077,-8267.0,0.00015876,2]
[400616025,1767745842086,-2500.0,0.0001589,2]
[400616026,1767745842096,-2500.0,0.0001589,2]
[400616027,1767745842105,-2500.0,0.0001589,2]
[400616028,1767745842115,-2500.0,0.0001589,2]
[400616029,1767745842124,-15000.0,0.00015939,2]
[400616030,1767745842133,-4667.85314935,0.00015986,2]
[400616031,1767745842143,-3000.0,0.00016012,2]
[400616032,1767745842153,-3000.0,0.00016012,2]
[400616033,1767745842163,-8267.0,0.00016013,2]
[400616034,1767745842173,-8288.44807479,0.0001615,2]
[400616035,1767745842183,-1518.27095848,0.00016438,2]
[400616036,1767745842193,-3000.0,0.00016438,2]
[400616037,1767745842205,-3000.0,0.00016438,2]
[400616038,1767745842215,-3000.0,0.00016438,2]
[400616039,1767745842225,-200.0,0.00016473,2]
[400616040,1767745842234,-3500.0,0.0001656,2]
[400616041,1767745842244,-3500.0,0.0001656,2]
[400616042,1767745842254,-3500.0,0.00016986,2]
[400616043,1767745842263,-2692.18736728,0.00016986,2]
[400616044,1767745842272,-3500.0,0.00016986,2]
[400616045,1767745842281,-61162.51963186,0.00017,2]
[400616046,1767745842291,-163349.36340269,0.00017,7]
[400616047,1767745842300,-204.0,0.00017067,2]
[400616048,1767745842309,-4000.0,0.00017108,2]
[400616049,1767745842319,-4000.0,0.00017108,2]
[400616050,1767745842328,-823.0,0.00017144,2]
[400616051,1767745842339,-1041.66666667,0.00017273,2]
[400616052,1767745842349,-1082.22551711,0.00017286,6]
[400616053,1767745842359,-4667.85314935,0.00017443,2]
[400616054,1767745842368,-4000.0,0.00017534,2]
[400616055,1767745842378,-1006.10461326,0.00017534,2]
[400616056,1767745842388,-250.0,0.00017577,2]
[400616057,1767745842398,-2134.99566074,0.000176,2]
[400616058,1767745842407,-2507.63173447,0.00017656,2]
[400616059,1767745842417,-4500.0,0.00017656,2]
[400616060,1767745842427,-69746.40730063,0.00018,5]
[400616061,1767745842436,-4298.06700811,0.00018082,2]
[400616062,1767745842447,-2887.16845353,0.00018204,2]
[400616063,1767745842456,-239.892767,0.00018493,2]
[400616064,1767745842465,-239.0,0.00018685,3]
[400616065,1767745842475,-1373.19707311,0.00018716,9]
[400616066,1767745842485,-1152.0,0.00018801,2]
[400616067,1767745842494,-42279.56725066,0.000189,2]
[400616068,1767745842503,-4667.85314935,0.000189,2]
[400616069,1767745842513,-7000.04923816,0.00019,2]
[400616070,1767745842523,-231.0,0.00019067,2]
[400616071,1767745842532,-900.0,0.00019178,2]
[400616072,1767745842542,-497.28977626,0.00019205,5]
[400616073,1767745842552,-249.6,0.00019257,2]
[400616074,1767745842561,-167.75,0.000193,2]
[400616075,1767745842571,-195.72,0.000193,2]
[400616076,1767745842582,-240.34,0.000193,2]
[400616077,1767745842592,-2089.8,0.000193,2]
[400616078,1767745842602,-22465.31,0.000193,2]
[400616079,1767745842611,-648.93473211,0.00019726,2]
[400616080,1767745842621,-181.04000005,0.0002,2]
[400616081,1767745842632,-1815.44742593,0.0002,2]
[400616082,1767745842641,-300.00038009,0.0002,7]
[400616083,1767745842651,-1677.17706042,0.00020145,12]
[400616084,1767745842661,-2439.506638,0.00020548,2]
[400616085,1767745842671,-411.0,0.00020618,2]
[400616086,1767745842680,-249.6,0.00020911,2]
[400616087,1767745842690,-195.05,0.00020951,2]
[400616088,1767745842699,-277.05120127,0.00021,2]
[400616089,1767745842709,-1081.20658707,0.00021,10]
[400616090,1767745842718,-27032.71808146,0.00021,2]
[400616091,1767745842730,-258.0,0.00021067,2]
[400616092,1767745842743,-190.0,0.00021425,4]
[400616093,1767745842752,-135714.8113552,0.000215,2]
[400616094,1767745842762,-239.892767,0.00021918,2]
[400616095,1767745842772,-568.06899724,0.0002196,10]
[400616096,1767745842784,-84987.34441726,0.00022,2]
[400616097,1767745842793,-171.83181526,0.00022,10]
[400616098,1767745842804,-19696.50350082,0.00022,7]
[400616099,1767745842817,-783.36754974,0.00022,20]
[400616100,1767745842828,-33705.33956913,0.00022,2]
[400616101,1767745842838,-2000.0,0.00022074,7]
[400616102,1767745842847,-1024.0,0.000221,2]
[400616103,1767745842856,-2362.32,0.000221,7]
[400616104,1767745842866,-300.0,0.00022466,2]
[400616105,1767745842876,-249.6,0.00022566,2]
[400616106,1767745842886,-2000.0,0.0002297,7]
[400616107,1767745842896,-2317.63520665,0.00023003,17]
[400616108,1767745842905,-450.0,0.00023014,2]
[400616109,1767745842915,-285.0,0.00023067,2]
[400616110,1767745842924,-1032.0,0.00023121,2]
[400616111,1767745842934,-500.0,0.00023159,2]
[400616112,1767745842945,-500.0,0.00023175,2]
[400616113,1767745842955,-500.0,0.00023372,2]
[400616114,1767745842964,-600.0,0.00023562,2]
[400616115,1767745842974,-2100.0,0.00023624,2]
[400616116,1767745842983,-584.04078392,0.00023682,2]
[400616117,1767745842993,-2336.16313568,0.00023682,2]
[400616118,1767745843002,-5256.36705529,0.00023682,2]
[400616119,1767745843011,-490.61052672,0.00023682,2]
[400616120,1767745843021,-1962.44210689,0.00023682,2]
[400616121,1767745843031,-4415.49474051,0.00023682,2]
[400616122,1767745843040,-7849.76842758,0.00023682,2]
[400616123,1767745843050,-22465.31,0.000237,2]
[400616124,1767745843060,-15905.50371464,0.000237,3]
[400616125,1767745843070,-376.8200359,0.00023836,2]
[400616126,1767745843080,-376.8200359,0.00023836,2]
[400616127,1767745843090,-2000.0,0.00023866,7]
[400616128,1767745843100,-500.0,0.00023909,2]
[400616129,1767745843110,-2100.0,0.00023926,2]
[400616130,1767745843122,-155.6642443,0.00023973,2]
[400616131,1767745843132,-600.6566519,0.00023973,2]
[400616132,1767745843141,-387.4247744,0.00023973,2]
[400616133,1767745843151,-600.6566519,0.00023973,2]
[400616134,1767745843160,-413.4277887,0.00023973,2]
[400616135,1767745843169,-23901.28444321,0.00024,2]
[400616136,1767745843179,-1734.56052203,0.00024,2]
[400616137,1767745843189,-465.40086912,0.00024,2]
[400616138,1767745843198,-618.86,0.00024,14]
[400616139,1767745843207,-1025.73276343,0.00024,2]
[400616140,1767745843216,-2100.0,0.00024089,2]
[400616141,1767745843226,-750.0,0.0002411,2]
[400616142,1767745843236,-659.0,0.0002412,7]
[400616143,1767745843245,-2100.0,0.00024132,2]
[400616144,1767745843254,-511358.26965662,0.00024142,2]
[400616145,1767745843264,-156.0,0.00024164,12]
[400616146,1767745843273,-659.0,0.00024189,7]
[400616147,1767745843282,-249.6,0.0002422,2]
[400616148,1767745843292,-195.05,0.00024245,2]
[400616149,1767745843301,-2100.0,0.00024253,2]
[400616150,1767745843311,-659.0,0.00024264,2]
[400616151,1767745843321,-659.0,0.00024268,2]
[400616152,1767745843330,-659.0,0.00024331,2]
[400616153,1767745843339,-659.0,0.00024391,2]
[400616154,1767745843348,-15905.49,0.000244,3]
[400616155,1767745843357,-1032.0,0.00024418,2]
[400616156,1767745843366,-2651.830009,0.00024432,20]
[400616157,1767745843375,-2100.0,0.00024442,2]
[400616158,1767745843384,-659.0,0.00024473,7]
[400616159,1767745843394,-195.72,0.000245,7]
[400616160,1767745843404,-240.34,0.000245,7]
[400616161,1767745843414,-2089.8,0.000245,14]